bitfinex/quotes_SOLUSD_20250518
["timestamp","ask_amount","ask_price","bid_price","bid_amount"]
[1747590794709,23.36981653,172.76,172.7,23.36981653]
[1747590794903,1.44766985,172.75,172.68,1.6213]
[1747590795103,1.44766985,172.75,172.71,23.36981653]
[1747590795725,5.78904712,172.74,172.7,23.36981653]
[1747590796025,7.23670543,172.74,172.7,23.36981653]
[1747590797227,30.60652196,172.74,172.68,1.6213]
[1747590797434,23.36981653,172.73,172.67,28.16702299]
[1747590797611,5.79005268,172.71,172.67,28.16702299]
[1747590797927,1.44788004,172.7,172.67,4.79720646]
[1747590798106,1.44788004,172.7,172.67,28.16702299]
[1747590798722,23.36981653,172.72,172.69,23.36981653]
[1747590798723,5.78972902,172.72,172.69,23.36981653]
[1747590799027,7.23739206,172.73,172.7,23.36981653]
[1747590799224,7.23739206,172.73,172.67,4.79720646]
[1747590799405,7.23739206,172.73,172.69,23.36981653]
[1747590799811,7.23739206,172.73,172.7,23.36981653]
[1747590800014,7.23739206,172.73,172.69,23.36981653]
[1747590801218,7.23739206,172.73,172.7,23.36981653]
[1747590802316,7.23739206,172.73,172.67,4.79720646]
[1747590802515,7.23739206,172.73,172.7,23.36981653]
[1747590803136,7.23739206,172.73,172.67,4.79720646]
[1747590803440,7.23739206,172.73,172.69,23.36981653]
[1747590803629,7.23739206,172.73,172.67,4.79720646]
[1747590804243,18.64964886,172.72,172.67,4.79720646]
[1747590804440,14.60874087,172.71,172.67,4.79720646]
[1747590804650,1.44816519,172.71,172.67,17.95778214]
[1747590805020,1.44816519,172.71,172.68,13.16057568]
[1747590805418,1.44789608,172.7,172.68,13.16057568]
[1747590805614,1.4478972,172.72,172.68,13.16057568]
[1747590805825,5.79005268,172.71,172.67,4.79720646]
[1747590806141,5.79005268,172.71,172.68,13.16057568]
[1747590806142,1.4478891,172.7,172.68,13.16057568]
[1747590806638,1.44783581,172.72,172.69,13.16057568]
[1747590806835,5.78904712,172.74,172.7,13.16057568]
[1747590807017,1.44770197,172.73,172.7,13.16057568]
[1747590807715,7.23731362,172.73,172.71,13.16057568]
[1747590808230,7.23731362,172.73,172.7,13.16057568]
[1747590808538,7.23731362,172.73,172.67,4.79720646]
[1747590808838,7.23731362,172.73,172.7,13.16057568]
[1747590809940,7.23731362,172.73,172.67,4.79720646]
[1747590810119,7.23731362,172.73,172.7,13.16057568]
[1747590810943,7.23731362,172.73,172.71,13.16057568]
[1747590811310,7.23731362,172.73,172.7,13.16057568]
[1747590811635,7.23731362,172.73,172.67,4.79720646]
[1747590811820,7.23731362,172.73,172.7,13.16057568]
[1747590812342,7.23731362,172.73,172.67,4.79720646]
[1747590812534,7.23731362,172.73,172.7,13.16057568]
[1747590813243,7.23731362,172.73,172.67,4.79720646]
[1747590813418,7.23731362,172.73,172.7,13.16057568]
[1747590813618,5.78913415,172.74,172.72,13.16057568]
[1747590813850,7.23643894,172.75,172.73,13.16057568]
[1747590814020,7.23507517,172.78,172.74,13.16057568]
[1747590814337,7.23456387,172.8,172.77,13.16057568]
[1747590814541,7.23456387,172.8,172.78,13.16057568]
[1747590814911,5.78677158,172.81,172.79,13.16057568]
[1747590815115,5.78639512,172.82,172.8,13.16057568]
[1747590815347,5.78609078,172.83,172.81,13.16057568]
[1747590815939,5.78571998,172.84,172.82,13.16057568]
[1747590816241,5.78541469,172.85,172.82,13.16057568]
[1747590816615,7.23179027,172.86,172.83,13.16057568]
[1747590817229,7.23179027,172.86,172.79,5.78706196]
[1747590817446,7.23179027,172.86,172.83,13.16057568]
[1747590817652,7.23179027,172.86,172.84,13.16057568]
[1747590818854,7.23179027,172.86,172.8,13.16057568]
[1747590819061,1.4465305,172.89,172.85,13.16057568]
[1747590819239,7.23058073,172.89,172.86,13.16057568]
[1747590819673,1.4465305,172.89,172.86,13.16057568]
[1747590819851,1.44623003,172.93,172.88,13.16057568]
[1747590820158,1.44623003,172.93,172.91,13.16057568]
[1747590820327,1.44623003,172.93,172.84,1.5477]
[1747590820528,1.44623003,172.93,172.9,13.16057568]
[1747590820730,5.78296355,172.93,172.91,13.16057568]
[1747590821046,5.78296355,172.93,172.92,13.16057568]
[1747590821245,5.78296355,172.93,172.85,5.7851682]
[1747590821246,5.78296355,172.93,172.84,7.33336627]
[1747590821643,5.78296355,172.93,172.9,13.16057568]
[1747590821846,5.78296355,172.93,172.84,7.33336627]
[1747590821847,5.78296355,172.93,172.92,13.16057568]
[1747590822360,5.78235226,172.94,172.9,13.16057568]
[1747590822668,5.78235226,172.94,172.84,36.0677]
[1747590822669,1.44596106,172.93,172.92,13.16057568]
[1747590822832,5.78235226,172.94,172.92,13.16057568]
[1747590823029,7.22796992,172.95,172.93,13.16057568]
[1747590823254,7.22796992,172.95,172.94,13.16057568]
[1747590823653,5.78209041,172.95,172.94,23.33251224]
[1747590824167,5.78134936,172.97,172.93,23.33251224]
[1747590824370,5.78134936,172.97,172.84,118.8677]
[1747590824371,7.22705844,172.97,172.96,23.33251224]
[1747590824672,7.22705844,172.97,172.9,23.33251224]
[1747590824872,7.22705844,172.97,172.95,23.33251224]
[1747590825355,5.78134936,172.97,172.95,23.33251224]
[1747590826074,5.78134936,172.97,172.94,23.33251224]
[1747590826364,5.78134936,172.97,172.88,6.5554]
[1747590826570,5.78134936,172.97,172.94,23.33251224]
[1747590827370,135.7334,173.0,172.89,5.78398336]
[1747590827371,5.78024041,173.01,172.96,23.33251224]
[1747590827565,1.44520372,173.04,173.0,46.66502448]
[1747590827765,1.44520372,173.04,172.95,34.52]
[1747590827974,1.44520372,173.04,173.03,23.33251224]
[1747590828368,7.22421435,173.04,173.03,23.33251224]
[1747590829184,26.23419608,173.1,173.03,23.33251224]
[1747590829185,5.77600646,173.13,173.03,23.33251224]
[1747590829409,20.21602263,173.13,173.1,23.33251224]
[1747590829556,20.21602263,173.13,173.02,7.44101345]
[1747590830064,5.77600646,173.13,173.02,7.44101345]
[1747590830274,5.77600646,173.13,173.1,23.33251224]
[1747590830474,5.77600646,173.13,173.11,23.33251224]
[1747590830676,5.77600646,173.13,173.02,7.44101345]
[1747590830885,5.77600646,173.13,173.12,23.33251224]
[1747590831175,20.21264127,173.16,173.12,23.33251224]
[1747590832059,20.21264127,173.16,173.03,6.93476885]
[1747590832260,20.21264127,173.16,173.12,23.33251224]
[1747590832965,20.21264127,173.16,173.02,7.44124546]
[1747590832966,18.64964886,173.15,173.02,7.44124546]
[1747590833167,23.33251224,173.14,173.08,23.33251224]
[1747590833478,23.33251224,173.13,173.02,7.44124546]
[1747590833652,18.64964886,173.15,173.08,23.33251224]
[1747590833858,23.33251224,173.13,173.08,23.33251224]
[1747590834067,18.64964886,173.15,173.08,23.33251224]
[1747590834279,23.33251224,173.13,173.08,23.33251224]
[1747590834489,5.77634011,173.12,173.07,23.33251224]
[1747590834961,20.21719038,173.12,173.07,23.33251224]
[1747590835280,20.21719038,173.12,173.02,7.44124546]
[1747590835281,43.54970262,173.12,173.06,23.33251224]
[1747590835453,20.21719038,173.12,173.02,1.6616]
[1747590835652,43.54970262,173.12,173.06,23.33251224]
[1747590837782,5.77700751,173.1,173.06,23.33251224]
[1747590840168,20.21952628,173.1,173.05,23.33251224]
[1747590840373,20.21952628,173.1,173.06,23.33251224]
[1747590840880,5.77700751,173.1,173.06,23.33251224]
[1747590841086,5.77634011,173.12,173.09,23.33251224]
[1747590841389,5.77634011,173.12,173.02,91.39685504]
[1747590841390,5.77634011,173.12,173.11,23.33251224]
[1747590841689,5.7753393,173.15,173.11,23.33251224]
[1747590841883,20.21297746,173.16,173.12,23.33251224]
[1747590842399,5.77500577,173.16,173.13,23.33251224]
[1747590842564,5.77500577,173.16,173.14,23.33251224]
[1747590842765,5.77500577,173.16,173.07,5.77776741]
[1747590842964,5.77500577,173.16,173.14,23.33251224]
[1747590843189,5.77433883,173.18,173.15,23.33251224]
[1747590843791,23.33251224,173.18,173.11,7.7628]
[1747590843992,23.33251224,173.18,173.12,23.33251224]
[1747590844164,23.33251224,173.18,173.13,23.33251224]
[1747590844662,23.33251224,173.18,173.12,23.33251224]
[1747590844862,23.33251224,173.18,173.11,1.5612]
[1747590844863,26.0,173.18,173.1,23.33251224]
[1747590845083,26.0,173.18,173.12,23.33251224]
[1747590845272,23.33251224,173.17,173.12,23.33251224]
[1747590846088,5.77500577,173.16,173.12,23.33251224]
[1747590846968,5.77500577,173.16,173.13,23.33251224]
[1747590847270,5.77433883,173.18,173.14,23.33251224]
[1747590847472,5.77433883,173.18,173.15,23.33251224]
[1747590847982,5.77400542,173.19,173.15,23.33251224]
[1747590848181,5.77400542,173.19,173.1,29.10920186]
[1747590848388,23.33251224,173.18,173.07,94.70984572]
[1747590848579,23.33251224,173.16,173.11,23.33251224]
[1747590848887,23.33251224,173.17,173.12,23.33251224]
[1747590849091,23.33251224,173.17,173.1,23.33251224]
[1747590849092,23.33251224,173.15,173.1,23.33251224]
[1747590849279,23.33251224,173.14,173.09,23.33251224]
[1747590849679,26.0,173.15,173.1,23.33251224]
[1747590849883,41.9821611,173.17,173.12,23.33251224]
[1747590850185,29.10751801,173.16,173.11,23.33251224]
[1747590850391,20.2125202,173.16,173.11,23.33251224]
[1747590850624,23.33251224,173.15,173.1,23.33251224]
[1747590850890,23.33251224,173.15,173.07,32.38]
[1747590851065,23.33251224,173.14,173.08,23.33251224]
[1747590851265,18.64964886,173.15,173.08,23.33251224]
[1747590851471,41.9821611,173.15,173.1,23.33251224]
[1747590851670,20.2125202,173.16,173.11,23.33251224]
[1747590852168,5.77500577,173.16,173.12,23.33251224]
[1747590852395,5.77500577,173.16,173.07,38.15793603]
[1747590852690,23.33251224,173.15,173.1,23.33251224]
[1747590852891,5.77500577,173.16,173.07,32.38]
[1747590853093,20.2125202,173.16,173.12,23.33251224]
[1747590853397,5.77500577,173.16,173.12,23.33251224]
[1747590853698,29.10751801,173.16,173.11,23.33251224]
[1747590853876,5.77500577,173.16,173.11,23.33251224]
[1747590854192,5.77500577,173.16,173.12,23.33251224]
[1747590854778,5.77500577,173.16,173.13,23.33251224]
[1747590854973,5.77500577,173.16,173.14,23.33251224]
[1747590855194,5.77475616,173.17,173.15,23.33251224]
[1747590856192,5.77475616,173.17,173.1,23.33251224]
[1747590856411,26.0,173.14,173.06,1.6459]
[1747590856697,26.0,173.14,173.03,6.6253]
[1747590856698,5.77634011,173.12,173.03,6.6253]
[1747590856874,5.77634011,173.12,173.07,23.33251224]
[1747590857074,43.54970262,173.12,173.03,6.6253]
[1747590857274,43.54970262,173.12,173.06,23.33251224]
[1747590857674,23.33251224,173.1,173.03,23.33251224]
[1747590857893,23.33251224,173.1,173.04,23.33251224]
[1747590858297,18.64964886,173.11,173.04,23.33251224]
[1747590858598,43.55203852,173.1,173.04,23.33251224]
[1747590859896,23.33251224,173.09,173.02,1.5071]
[1747590860071,49.10456383,173.1,172.99,222.6856]
[1747590860072,23.33251224,173.07,172.99,216.38]
[1747590860272,23.33251224,173.07,173.0,23.33251224]
[1747590860473,23.33251224,173.07,173.01,23.33251224]
[1747590860683,20.22419969,173.06,173.0,23.33251224]
[1747590860886,20.22419969,173.06,173.01,23.33251224]
[1747590863098,43.55671193,173.06,173.0,23.33251224]
[1747590863294,23.33251224,173.04,172.98,24.99801224]
[1747590863606,41.9821611,173.05,172.98,24.99801224]
[1747590864201,23.33251224,173.03,172.98,1.6655]
[1747590864504,23.33251224,173.04,172.98,24.99801224]
[1747590865203,5.77934462,173.03,172.98,1.6655]
[1747590865591,5.77934462,173.03,173.01,23.33251224]
[1747590866305,5.77934462,173.03,173.0,23.33251224]
[1747590866599,5.77934462,173.03,172.98,1.6655]
[1747590866800,63.78080137,173.04,172.95,6.2645]
[1747590866986,40.44828913,173.04,172.98,23.33251224]
[1747590867190,63.78080137,173.04,172.98,23.33251224]
[1747590867913,63.78080137,173.04,172.95,6.2645]
[1747590868120,69.559812,173.04,172.98,23.33251224]
[1747590869204,20.22729976,173.04,172.99,23.33251224]
[1747590870107,20.22729976,173.04,173.0,23.33251224]
[1747590871202,14.44828913,173.04,173.0,23.33251224]
[1747590871489,14.44828913,173.04,172.95,6.2645]
[1747590871696,14.44828913,173.04,172.99,23.33251224]
[1747590872095,14.44828913,173.04,172.95,6.2645]
[1747590872096,37.78080137,173.04,172.98,23.33251224]
[1747590872313,14.44828913,173.04,172.99,23.33251224]
[1747590873412,20.22729976,173.04,172.99,23.33251224]
[1747590874384,41.9821611,173.03,172.95,6.2645]
[1747590874581,41.9821611,173.03,172.96,23.33251224]
[1747590874790,41.9821611,173.03,172.97,23.33251224]
[1747590875308,5.77967864,173.02,172.98,23.33251224]
[1747590875790,5.77967864,173.02,172.99,14.57395305]
[1747590876606,5.77967864,173.02,172.94,1.6655]
[1747590876807,5.77967864,173.02,172.98,14.57395305]
[1747590877310,5.77934462,173.03,172.98,14.57395305]
[1747590878509,34.80165922,173.03,172.97,14.57395305]
[1747590878812,14.57395305,173.01,172.94,1.6655]
[1747590879118,38.87735503,173.03,172.97,14.57395305]
[1747590879292,53.45130808,173.03,172.97,14.57395305]
[1747590879494,38.87735503,173.03,172.97,14.57395305]
[1747590879813,53.45130808,173.03,172.97,14.57395305]
[1747590880387,53.45130808,173.03,172.94,1.6655]
[1747590880589,53.45130808,173.03,172.97,14.57395305]
[1747590882001,14.57395305,173.02,172.94,1.6655]
[1747590882302,34.80165922,173.03,172.94,1.6655]
[1747590882610,14.57395305,173.02,172.97,14.57395305]
[1747590883191,14.57395305,173.02,172.94,1.6655]
[1747590883492,14.57395305,173.02,172.96,14.57395305]
[1747590883690,14.57395305,173.01,172.94,1.6655]
[1747590883893,5.78001271,173.01,172.95,14.57395305]
[1747590884105,5.78001271,173.01,172.96,14.57395305]
[1747590884314,14.57395305,173.0,172.94,1.6655]
[1747590884510,5.78001271,173.01,172.97,14.57395305]
[1747590884715,34.68007629,173.01,172.84,6.1993]
[1747590885023,34.68007629,173.01,172.8,0.85619997]
[1747590885024,14.57395305,172.86,172.8,8.66159997]
[1747590885322,14.57395305,172.87,172.82,14.57395305]
[1747590885638,14.57395305,172.86,172.81,14.57395305]
[1747590885854,20.35931294,172.86,172.81,14.57395305]
[1747590886302,14.57395305,172.84,172.8,1.6061]
[1747590886499,14.57395305,172.82,172.77,29.4]
[1747590886835,14.57395305,172.84,172.79,14.57395305]
[1747590887210,14.57395305,172.82,172.77,29.4]
[1747590887420,14.57395305,172.82,172.77,43.97395305]
[1747590887595,23.37542591,172.82,172.77,52.77542591]
[1747590887800,18.64964886,172.85,172.77,29.4]
[1747590888000,5.78569775,172.84,172.78,23.37542591]
[1747590888301,18.64964886,172.88,172.8,23.37542591]
[1747590888625,5.78435909,172.88,172.83,23.37542591]
[1747590888927,23.37542591,172.85,172.77,35.18803451]
[1747590889424,23.37542591,172.85,172.8,23.37542591]
[1747590889627,5.78435909,172.88,172.83,23.37542591]
[1747590889921,5.78536303,172.85,172.77,35.18796737]
[1747590890098,5.78536303,172.85,172.81,23.37542591]
[1747590890301,23.37542591,172.84,172.77,29.4]
[1747590890507,23.37542591,172.83,172.78,23.37542591]
[1747590891000,23.37542591,172.83,172.77,29.4]
[1747590891206,23.37542591,172.81,172.77,29.4]
[1747590891429,23.37542591,172.81,172.76,23.37542591]
[1747590891726,42.02507477,172.82,172.77,23.37542591]
[1747590891958,5.78670215,172.81,172.77,23.37542591]
[1747590892106,5.78670215,172.81,172.8,23.37542591]
[1747590892510,135.7334,172.83,172.8,23.37542591]
[1747590892715,5.7846937,172.87,172.82,23.37542591]
[1747590893041,5.7846937,172.87,172.84,23.37542591]
[1747590893202,5.7846937,172.87,172.85,23.37542591]
[1747590893404,5.7846937,172.87,172.8,1.6061]
[1747590893618,5.7846937,172.87,172.84,23.37542591]
[1747590893802,5.78435909,172.88,172.84,23.37542591]
[1747590894017,5.78435909,172.88,172.85,23.37542591]
[1747590894336,5.78435909,172.88,172.84,23.37542591]
[1747590895736,5.78435909,172.88,172.8,1.6061]
[1747590895912,5.78435909,172.88,172.84,23.37542591]
[1747590897329,5.78435909,172.88,172.8,1.6061]
[1747590897631,5.78435909,172.88,172.84,23.37542591]
[1747590898925,18.64964886,172.84,172.75,27.535]
[1747590899250,18.64964886,172.85,172.8,23.37542591]
[1747590899435,5.78569775,172.84,172.8,23.37542591]
[1747590900252,5.7846937,172.87,172.83,23.37542591]
[1747590900466,5.7846937,172.87,172.84,23.37542591]
[1747590901446,20.24525682,172.88,172.84,23.37542591]
[1747590901615,5.78435909,172.88,172.86,23.37542591]
[1747590901942,5.78368999,172.9,172.87,23.37542591]
[1747590902132,5.78326519,172.92,172.89,23.37542591]
[1747590902327,5.78235226,172.94,172.91,23.37542591]
[1747590902528,5.78235226,172.94,172.92,23.37542591]
[1747590902729,5.78168362,172.96,172.93,23.37542591]
[1747590902926,5.78168362,172.96,172.85,26.0]
[1747590903171,5.78168362,172.96,172.84,1.535]
[1747590903346,20.23472277,172.97,172.85,5.78536303]
[1747590903641,20.23472277,172.97,172.87,23.37542591]
[1747590903642,23.37542591,172.92,172.87,23.37542591]
[1747590903944,18.64964886,172.93,172.84,1.535]
[1747590904246,23.37542591,172.92,172.87,23.37542591]
[1747590904448,42.02507477,172.93,172.88,23.37542591]
[1747590904642,26.0,172.94,172.9,23.37542591]
[1747590904830,49.37542591,172.94,172.89,23.37542591]
[1747590905218,26.0,172.94,172.9,23.37542591]
[1747590905456,5.78268663,172.93,172.9,23.37542591]
[1747590905759,5.78201792,172.95,172.92,23.37542591]
[1747590906259,5.78201792,172.95,172.91,23.37542591]
[1747590907427,23.37542591,172.94,172.89,23.37542591]
[1747590907627,18.64964886,172.94,172.89,23.37542591]
[1747590907829,18.64964886,172.94,172.9,23.37542591]
[1747590908035,5.78201792,172.95,172.92,23.37542591]
[1747590908339,5.78201792,172.95,172.93,23.37542591]
[1747590908535,18.64964886,172.94,172.84,7.32036954]
[1747590908736,18.64964886,172.94,172.89,23.37542591]
[1747590909052,18.64964886,172.94,172.84,7.32036954]
[1747590909237,18.64964886,172.94,172.89,23.37542591]
[1747590909552,5.78268663,172.93,172.85,5.78530301]
[1747590909752,5.78268663,172.93,172.9,23.37542591]
[1747590909933,5.78268663,172.93,172.91,23.37542591]
[1747590910140,24.43133248,172.96,172.92,23.37542591]
[1747590910332,24.43133248,172.96,172.91,23.37542591]
[1747590910750,26.0,172.93,172.81,1.15679001]
[1747590910937,18.64964886,172.89,172.84,23.37542591]
[1747590911332,5.78435909,172.88,172.84,23.37542591]
[1747590912238,5.78435909,172.88,172.87,23.37542591]
[1747590913040,5.7833555,172.91,172.87,23.37542591]
[1747590913333,5.78235226,172.94,172.9,23.37542591]
[1747590913545,5.78235226,172.94,172.92,23.37542591]
[1747590914256,5.78235226,172.94,172.93,23.37542591]
[1747590914631,5.78101514,172.98,172.93,23.37542591]
[1747590914851,5.78101514,172.98,172.96,23.37542591]
[1747590915235,5.78101514,172.98,172.97,23.37542591]
[1747590915429,24.43032982,172.99,172.97,23.37542591]
[1747590915633,24.43032982,172.99,172.91,5.7832397]
[1747590915634,5.78068096,172.99,172.98,23.37542591]
[1747590916048,5.78001271,173.01,172.98,23.37542591]
[1747590916256,5.78001271,173.01,173.0,23.37542591]
[1747590916854,5.77962694,173.03,173.0,23.37542591]
[1747590917056,5.77962694,173.03,173.02,23.37542591]
[1747590917230,5.77962694,173.03,173.01,23.37542591]
[1747590917432,14.44686131,173.05,173.01,23.37542591]
[1747590917636,5.77867668,173.05,173.02,23.37542591]
[1747590917837,5.77867668,173.05,173.03,23.37542591]
[1747590918037,5.77867668,173.05,173.02,23.37542591]
[1747590918354,5.77867668,173.05,173.01,23.37542591]
[1747590918564,5.77867668,173.05,172.95,1.6329]
[1747590918745,23.37542591,173.03,172.97,23.37542591]
[1747590919061,42.02507477,172.98,172.83,5.78603251]
[1747590919257,18.64964886,172.98,172.93,23.37542591]
[1747590919635,18.64964886,172.98,172.94,23.37542591]
[1747590919636,5.78134936,172.97,172.94,23.37542591]
[1747590919860,5.78134936,172.97,172.93,23.37542591]
[1747590920062,5.78134936,172.97,172.94,23.37542591]
[1747590920668,5.78134936,172.97,172.92,23.37542591]
[1747590920838,5.78134936,172.97,172.9,5.78360278]
[1747590921039,5.78134936,172.97,172.93,23.37542591]
[1747590921237,5.78107168,172.98,172.94,23.37542591]
[1747590921568,42.02507477,173.0,172.95,23.37542591]
[1747590921766,18.64964886,173.0,172.95,23.37542591]
[1747590922063,62.25628864,173.0,172.94,23.37542591]
[1747590922264,23.37542591,172.97,172.92,1.6602]
[1747590922444,38.88086273,173.0,172.93,23.37542591]
[1747590922805,47.80542159,173.0,172.95,23.37542591]
[1747590922961,5.78034682,173.0,172.96,23.37542591]
[1747590923558,5.78034682,173.0,172.97,23.37542591]
[1747590923736,5.77967864,173.02,172.98,23.37542591]
[1747590923943,23.37542591,173.01,172.95,23.37542591]
[1747590924143,42.02507477,173.0,172.92,1.6602]
[1747590924464,23.37542591,173.0,172.95,23.37542591]
[1747590924859,159.10882591,173.01,172.95,23.37542591]
[1747590925360,5.78034682,173.0,172.98,23.37542591]
[1747590925686,5.78034682,173.0,172.94,29.15768171]
[1747590925687,29.15577273,173.0,172.94,29.15768171]
[1747590926462,29.15577273,173.0,172.95,23.37542591]
[1747590926673,23.37542591,173.0,172.95,29.15730659]
[1747590926868,5.77934462,173.03,172.96,23.37542591]
[1747590927056,23.37542591,173.02,172.96,23.37542591]
[1747590927253,23.37542591,173.01,172.96,23.37542591]
[1747590927556,23.37542591,172.99,172.94,23.37542591]
[1747590927869,5.77934462,173.03,172.94,23.37542591]
[1747590928053,5.77934462,173.03,172.96,23.37542591]
[1747590928264,29.15477053,173.03,172.97,23.37542591]
[1747590928663,23.37542591,173.03,172.98,23.37542591]
[1747590928861,23.37542591,173.04,172.99,23.37542591]
[1747590929064,23.37542591,173.03,172.97,29.15666833]
[1747590929664,5.77900126,173.05,172.98,23.37542591]
[1747590929860,23.37542591,173.01,172.96,57.93710848]
[1747590930071,23.37542591,173.0,172.96,28.78]
[1747590930254,5.77944269,173.03,172.96,52.15542591]
[1747590930454,23.37542591,173.01,172.96,57.93698755]
[1747590930868,23.37542591,173.02,172.97,23.37542591]
[1747590931277,5.77944269,173.03,172.97,23.37542591]
[1747590931456,168.82769729,173.08,172.98,23.37542591]
[1747590931861,23.37542591,173.03,172.98,23.37542591]
[1747590932480,23.37542591,173.03,172.97,5.78115699]
[1747590932672,23.31566102,173.03,172.97,5.78115699]
[1747590933184,23.31566102,173.02,172.97,5.78115699]
[1747590933480,23.31566102,173.02,172.96,34.56165871]
[1747590934573,5.77800889,173.07,172.96,34.56165871]
[1747590934771,23.31566102,173.05,172.97,6.2656]
[1747590934978,23.31566102,173.04,172.97,6.2656]
[1747590935472,23.31566102,173.03,172.97,6.2656]
[1747590935997,23.31566102,173.03,172.97,12.04668649]
[1747590936395,29.09483517,173.04,172.97,12.04668649]
[1747590936597,23.31566102,173.03,172.97,6.2656]
[1747590937085,23.31566102,173.03,172.96,28.78]
[1747590937290,23.31566102,173.03,172.96,34.56155192]
[1747590937965,20.22303113,173.07,172.96,34.56155192]
[1747590938165,23.31566102,173.05,172.96,34.56155192]
[1747590939171,23.31566102,173.02,172.96,34.56155192]
[1747590939362,23.31566102,173.02,172.96,28.78]
[1747590940071,29.09567373,173.01,172.96,28.78]
[1747590940270,23.31566102,173.0,172.96,28.78]
[1747590942278,29.09624231,173.0,172.96,28.78]
[1747590942780,29.09572951,173.01,172.96,28.78]
[1747590943567,5.78006849,173.01,172.96,28.78]
[1747590944261,23.31566102,173.03,172.96,34.56159848]
[1747590945078,23.31566102,173.02,172.96,28.78]
[1747590945473,23.31566102,172.99,172.96,28.78]
[1747590946062,23.31566102,172.98,172.96,28.78]
[1747590946264,5.78168362,172.96,172.92,1.6602]
[1747590946574,5.78141812,172.97,172.92,1.6602]
[1747590948490,23.31566102,172.98,172.92,1.6602]
[1747590948791,23.31566102,172.97,172.92,1.6602]
[1747590949462,23.31566102,172.95,172.9,28.52]
[1747590950492,5.78235226,172.94,172.9,28.52]
[1747590951281,29.09777413,172.95,172.9,28.52]
[1747590951789,5.78211311,172.95,172.9,34.30368771]
[1747590952287,14.58657141,172.98,172.9,34.30368771]
[1747590953185,14.58657141,172.99,172.9,34.30368771]
[1747590953488,20.36658412,173.01,172.9,49.91920498]
[1747590953689,29.10239528,173.01,172.9,49.91920498]
[1747590954584,23.32238257,173.0,172.9,49.91920498]
[1747590955160,29.10239528,173.01,172.9,49.91920498]
[1747590955567,23.32238257,173.01,172.91,6.1477]
[1747590956180,159.05578257,173.02,172.92,2.79308561]
[1747590956381,159.05578257,173.02,172.92,31.25308561]
[1747590957173,159.05578257,173.02,172.93,5.78268663]
[1747590957493,164.83547082,173.02,172.93,5.78268663]
[1747590957693,135.7334,173.02,172.93,20.23940322]
[1747590957877,23.32238257,173.04,172.93,20.23940322]
[1747590958695,23.32238257,173.04,172.94,1.15597107]
[1747590958894,23.32238257,173.04,172.94,27.15597107]
[1747590959288,23.32238257,173.04,172.95,5.78201792]
[1747590959906,29.10158882,173.04,172.95,5.78201792]
[1747590960205,23.32238257,173.03,172.95,5.78201792]
[1747590960385,23.32238257,173.02,172.95,5.78201792]
[1747590960585,23.32238257,173.01,172.94,31.78225605]
[1747590960791,5.77920625,173.04,172.92,1.637]
[1747590960792,23.32238257,172.96,172.92,1.637]
[1747590961376,14.45005401,173.01,172.92,1.637]
[1747590961577,23.32238257,172.97,172.92,1.637]
[1747590962100,14.45005401,173.01,172.92,7.41999177]
[1747590962303,5.77967864,173.02,172.92,7.41999177]
[1747590962602,5.77967864,173.02,172.93,1.15620458]
[1747590963392,14.44789228,173.04,172.94,5.78235226]
[1747590963577,23.32238257,173.03,172.94,5.78235226]
[1747590964199,5.77867668,173.05,172.94,5.78235226]
[1747590964508,23.32238257,173.03,172.94,5.78235226]
[1747590965307,5.77967864,173.02,172.94,5.78235226]
[1747590965902,29.10179267,173.03,172.94,5.78235226]
[1747590966107,5.7794101,173.03,172.94,5.78235226]
[1747590966315,29.10179267,173.03,172.94,5.78235226]
[1747590966806,23.32238257,173.02,172.94,5.78235226]
[1747590967016,29.1021513,173.02,172.93,5.78268663]
[1747590967195,28.6021513,173.02,172.95,28.4]
[1747590967904,5.77834277,173.06,172.95,34.4458]
[1747590968090,23.32238257,173.04,172.95,34.4458]
[1747590968291,23.32238257,173.05,172.95,34.4458]
[1747590968698,5.77834277,173.06,172.95,64.00169079]
[1747590968901,23.32238257,173.05,172.95,64.00169079]
[1747590969207,29.10087859,173.06,172.96,20.23589268]
[1747590969411,150.17566992,173.11,172.97,27.6454]
[1747590969710,23.32238257,173.08,172.97,27.6454]
[1747590970095,23.32238257,173.07,172.97,27.6454]
[1747590970311,23.32238257,173.06,172.97,27.6454]
[1747590970608,23.32238257,173.05,172.97,27.6454]
[1747590971105,5.77867668,173.05,172.98,31.78101514]
[1747590971307,23.32238257,173.06,172.98,31.78101514]
[1747590972408,29.10091454,173.06,172.98,31.78101514]
[1747590973116,1.5382,173.04,172.9,1.6454]
[1747590973298,23.32238257,172.94,172.9,1.6454]
[1747590973494,23.32238257,172.94,172.89,8.167911]
[1747590973688,18.64964886,173.03,172.89,8.167911]
[1747590973689,23.32238257,172.97,172.89,8.167911]
[1747590974007,23.32238257,172.98,172.89,13.95186074]
[1747590974210,23.32238257,173.0,172.89,13.95186074]
[1747590974604,5.78046428,173.0,172.89,13.95186074]
[1747590974808,29.10284685,173.0,172.89,13.95186074]
[1747590975004,29.10284685,173.0,172.9,26.0]